[Event "BL 2018-19"]
[Site "Berlin"]
[Date "2019.03.02"]
[Round "10.13"]
[White "Vrolijk, Liam"]
[Black "Pakleza, Zbigniew"]
[Result "1/2-1/2"]
[ECO "A65"]
[WhiteElo "2445"]
[BlackElo "2508"]
[Annotator "ChessBase"]
[PlyCount "81"]
[EventDate "2018.11.10"]
[EventType "team-tourn"]
[EventCountry "GER"]
[SourceTitle "playchess.com"]
[Source "ChessBase"]
[SourceQuality "1"]
[WhiteTeam "Muelheim"]
[BlackTeam "Kiel"]
[TimeControl "40/6000+30:3000+30"]

1. d4 {[%emt 0:00:00]} Nf6 {[%emt 0:00:00]} 2. c4 {[%emt 0:00:23]} c5 {[%emt 0:00:11]} 3. d5 {[%emt 0:00:34]} e6 {[%emt 0:00:22]} 4. Nc3 {[%emt 0:00:32]} exd5 5. cxd5 {[%emt 0:00:08]} d6 {[%emt 0:00:19]} 6. e4 {[%emt 0:01:34]} g6 {[%emt 0:00:07]} 7. Nge2 {[%emt 0:03:53]} Bg7 {[%emt 0:00:09]} 8. Ng3 {[%emt 0:00:16]} O-O {[%emt 0:06:34]} 9. Be2 {[%emt 0:01:28]} Re8 {[%emt 0:02:16]} 10. O-O {[%emt 0:01:17]} a6 {[%emt 0:02:44]} 11. a4 {[%emt 0:00:46]} Nbd7 {[%emt 0:03:16]} 12. f3 {[%emt 0:08:25]} b6 {[%emt 0:09:16]} 13. Be3 {[%emt 0:03:10]} h5 {[%emt 0:01:41]} 14. Qd2 {[%emt 0:11:49]} Nh7 {[%emt 0:20:44]} 15. Nh1 {[%emt 0:02:58]} f5 {[%emt 0:05:10]} 16. Nf2 {[%emt 0:01:55]} Ne5 {[%emt 0:02:47]} 17. Rae1 {[%emt 0:11:22]} Nf6 {[%emt 0:06:11]} 18. Bh6 {[%emt 0:08:55]} Nf7 {[%emt 0:13:44]} 19. Bxg7 {[%emt 0:02:52]} Kxg7 {[%emt 0:00:05]} 20. Bd3 {[%emt 0:04:56]} Ne5 {[%emt 0:02:03]} 21. Bb1 {[%emt 0:03:03]} fxe4 {[%emt 0:00:13]} 22. Nfxe4 {[%emt 0:01:02]} Nh7 {[%emt 0:02:23]} 23. Ne2 {[%emt 0:08:32]} Ra7 {[%emt 0:13:17]} 24. a5 {[%emt 0:10:55]} Bf5 {[%emt 0:06:25]} 25. b4 {[%emt 0:02:56]} Bxe4 {[%emt 0:01:00]} 26. Bxe4 {[%emt 0:00:18]} Nf8 {[%emt 0:04:28]} 27. axb6 {[%emt 0:05:24]} Qxb6 {[%emt 0:00:07]} 28. bxc5 {[%emt 0:00:21]} Qxc5+ {[%emt 0:00:19]} 29. Nd4 {[%emt 0:00:35]} Rb7 {[%emt 0:03:31]} 30. Rc1 {[%emt 0:01:47]} Qb4 {[%emt 0:00:37]} 31. Rc7+ {[%emt 0:02:25]} Nf7 {[%emt 0:00:40]} 32. Qxb4 {[%emt 0:04:16]} Rxb4 {[%emt 0:00:01]} 33. Nc6 {[%emt 0:00:31]} Rb6 {[%emt 0:00:50]} 34. Ra7 {[%emt 0:00:14]} Kf6 {[%emt 0:01:05]} 35. Bd3 {[%emt 0:02:06]} Ne5 {[%emt 0:00:50]} 36. Bxa6 {[%emt 0:01:06]} Rb2 {[%emt 0:01:13]} 37. Rc1 {[%emt 0:01:25]} g5 {[%emt 0:01:37]} 38. Rb7 {[%emt 0:02:50]} Rd2 {[%emt 0:00:26]} 39. Bb5 {[%emt 0:01:22]} Nfg6 {[%emt 0:01:04]} 40. Nxe5 {[%emt 0:00:46]} Rxe5 {[%emt 0:00:01]} 41. Bf1 {[%emt 0:50:23]} 1/2-1/2

[Event "BL 2018-19"]
[Site "Berlin"]
[Date "2019.03.02"]
[Round "10.19"]
[White "Berelowitsch, Alexander"]
[Black "Perske, Thore"]
[Result "1/2-1/2"]
[ECO "C07"]
[WhiteElo "2520"]
[BlackElo "2448"]
[Annotator "RC"]
[PlyCount "118"]
[EventDate "2018.11.10"]
[EventType "team-tourn"]
[EventCountry "GER"]
[SourceTitle "playchess.com"]
[Source "ChessBase"]
[SourceQuality "1"]
[WhiteTeam "Duesseldorf"]
[BlackTeam "SV Hofheim"]
[TimeControl "40/6000+30:3000+30"]

1. e4 {[%emt 0:00:00]} e6 {[%emt 0:00:00]} 2. d4 {[%emt 0:00:00]} d5 {[%emt 0:00:00]} 3. Nd2 {[%emt 0:00:00]} c5 {[%emt 0:00:12]} 4. c3 {[%emt 0:00:09]} cxd4 {[%emt 0:08:08]} 5. cxd4 {[%emt 0:00:34]} dxe4 {[%emt 0:01:22]} 6. Nxe4 {[%emt 0:00:06]} Nf6 {[%emt 0:02:38]} 7. Bd3 {[%emt 0:06:25]} Nc6 {[%emt 0:07:22]} 8. Nf3 {[%emt 0:09:05]} Nxe4 {[%emt 0:11:56]} 9. Bxe4 {[%emt 0:00:45]} Bb4+ {[%emt 0:00:26]} 10. Bd2 {[%emt 0:01:08]} Bxd2+ {[%emt 0:02:46]} 11. Qxd2 {[%emt 0:00:28]} Bd7 {[%emt 0:00:26]} 12. O-O {[%emt 0:13:47]} O-O {[%emt 0:03:42]} 13. Rfd1 {[%emt 0:09:18]} h6 {[%emt 0:21:43]} 14. Ne5 {[%emt 0:12:09]} Rc8 {[%emt 0:01:18]} 15. g3 {[%emt 0:14:11]} Nxe5 {[%emt 0:11:32]} 16. dxe5 {[%emt 0:00:27]} Bc6 {[%emt 0:00:08]} 17. Qxd8 {[%emt 0:06:03]} Rfxd8 {[%emt 0:04:33]} 18. Rxd8+ {[%emt 0:01:10]} Rxd8 {[%emt 0:00:02]} 19. Bxc6 {[%emt 0:00:06]} bxc6 {[%emt 0:00:07]} 20. Rc1 {[%emt 0:00:03]} Rd2 {[%emt 0:01:30]} 21. Rxc6 {[%emt 0:00:18]} Rxb2 {[%emt 0:00:07]} 22. Ra6 {[%emt 0:01:43]} Rb7 {[%emt 0:00:40]} 23. h4 {[%emt 0:06:03]} h5 {[%emt 0:03:39]} 24. f3 {[%emt 0:11:36]} Kh7 {[%emt 0:04:55]} 25. Kf2 {[%emt 0:00:20]} Kg6 {[%emt 0:01:29]} 26. g4 {[%emt 0:00:22]} Rc7 {[%emt 0:04:40]} 27. Kg3 {[%emt 0:02:51]} hxg4 {[%emt 0:00:54]} 28. Kxg4 {[%emt 0:01:45]} Kh6 {[%emt 0:00:42]} 29. h5 {[%emt 0:02:44]} g6 {[%emt 0:00:26]} 30. hxg6 {[%emt 0:00:05]} Kxg6 {[%emt 0:00:02]} 31. f4 {[%emt 0:02:50]} Kg7 {[%emt 0:00:04]} 32. Kg5 {[%emt 0:01:06]} Rb7 {[%emt 0:00:26]} 33. a3 {[%emt 0:02:55]} Rc7 {[%emt 0:01:24]} 34. a4 {[%emt 0:00:12]} Rd7 {[%emt 0:02:59]} 35. Ra5 {[%emt 0:01:47]} Kf8 {[%emt 0:02:32]} 36. Kf6 {[%emt 0:01:08]} Rd4 {[%emt 0:00:06]} 37. Kg5 {[%emt 0:00:04]} Rd7 {[%emt 0:00:05]} 38. Rb5 {[%emt 0:02:25]} Rd4 {[%emt 0:01:40]} 39. a5 {[%emt 0:00:44]} Kg7 {[%emt 0:06:10]} 40. Rb7 {[%emt 0:01:28]} a6 {[%emt 0:00:12]} 41. f5 {[%emt 0:07:18]} Re4 {[%emt 0:02:56]} 42. f6+ {[%emt 0:01:42]} Kg8 {[%emt 0:00:32]} 43. Ra7 {[%emt 0:00:39]} Re1 {[%emt 0:11:05]} 44. Rxa6 {[%emt 0:08:37]} Kh7 {[%emt 0:03:32]} 45. Kf4 {[%emt 0:00:18]} Ra1 {[%emt 0:03:41]} 46. Ra7 {[%emt 0:14:41]} Kg6 {[%emt 0:02:19]} 47. a6 {[%emt 0:00:15]} Ra4+ {[%emt 0:09:39]} 48. Ke3 {[%emt 0:09:03]} Kf5 {[%emt 0:00:56]} 49. Rxf7 {[%emt 0:00:14]} Kxe5 {[%emt 0:00:06]} 50. a7 {[%emt 0:06:00]} Kf5 {[%emt 0:00:10]} 51. Kd3 {[%emt 0:02:52]} Kg6 {[%emt 0:00:06]} 52. Rb7 {[%emt 0:02:05]} Kxf6 {[%emt 0:00:06]} 53. Kc3 {[%emt 0:00:25]} e5 {[%emt 0:01:04]} 54. Kb3 {[%emt 0:00:08]} Ra1 {[%emt 0:00:10]} 55. Kc4 {[%emt 0:00:18]} Kf5 {[%emt 0:00:52]} 56. Kc5 {[%emt 0:03:47]} e4 {[%emt 0:03:11]} 57. Kb6 {[%emt 0:00:51]} e3 {[%emt 0:00:41]} 58. Re7 {[%emt 0:00:06]} Kf4 {[%emt 0:00:10]} 59. Kb7 {[%emt 0:00:12]} Kf3 {[%emt 0:00:06]} 1/2-1/2

[Event "BL 2018-19"]
[Site "Berlin"]
[Date "2019.03.02"]
[Round "10.21"]
[White "Miedema, David"]
[Black "Womacka, Mathias"]
[Result "1/2-1/2"]
[ECO "B90"]
[WhiteElo "2381"]
[BlackElo "2449"]
[Annotator "NA"]
[PlyCount "102"]
[EventDate "2018.11.10"]
[EventType "team-tourn"]
[EventCountry "GER"]
[SourceTitle "playchess.com"]
[Source "ChessBase"]
[SourceQuality "1"]
[WhiteTeam "Duesseldorf"]
[BlackTeam "SV Hofheim"]
[TimeControl "40/6000+30:3000+30"]

1. e4 {[%emt 0:00:00]} c5 {[%emt 0:00:00]} 2. Nf3 {[%emt 0:00:00]} d6 {[%emt 0:00:00]} 3. d4 {[%emt 0:00:00]} cxd4 {[%emt 0:00:00]} 4. Nxd4 {[%emt 0:00:00]} Nf6 {[%emt 0:00:03]} 5. Nc3 {[%emt 0:00:00]} a6 {[%emt 0:00:06]} 6. h3 {[%emt 0:00:00]} e5 {[%emt 0:01:49]} 7. Nde2 {[%emt 0:00:00]} h5 {[%emt 0:00:07]} 8. Bg5 {[%emt 0:01:10]} Be6 {[%emt 0:00:35]} 9. Bxf6 {[%emt 0:00:06]} Qxf6 {[%emt 0:00:08]} 10. Nd5 {[%emt 0:00:02]} Qd8 {[%emt 0:00:40]} 11. Qd3 {[%emt 0:00:05]} Nd7 {[%emt 0:09:51]} 12. O-O-O {[%emt 0:03:20]} g6 {[%emt 0:01:26]} 13. Kb1 {[%emt 0:01:36]} Nc5 {[%emt 0:28:22]} 14. Qf3 {[%emt 0:02:41]} Bg7 {[%emt 0:01:00]} 15. Nec3 {[%emt 0:10:53]} O-O {[%emt 0:02:55]} 16. Ne3 {[%emt 0:16:56]} b5 {[%emt 0:16:49]} 17. Ncd5 {[%emt 0:00:37]} h4 {[%emt 0:12:25]} 18. g3 {[%emt 0:01:39]} Ra7 {[%emt 0:14:30]} 19. Qg2 {[%emt 0:13:37]} Qg5 {[%emt 0:03:15]} 20. Rg1 {[%emt 0:05:54]} f5 {[%emt 0:02:50]} 21. exf5 {[%emt 0:00:48]} gxf5 {[%emt 0:00:11]} 22. f4 {[%emt 0:02:23]} Qh6 {[%emt 0:04:27]} 23. g4 {[%emt 0:02:24]} fxg4 {[%emt 0:03:50]} 24. f5 {[%emt 0:14:50]} Bxf5 {[%emt 0:01:18]} 25. Nxf5 {[%emt 0:00:48]} Rxf5 {[%emt 0:00:05]} 26. hxg4 {[%emt 0:00:18]} Rg5 {[%emt 0:00:42]} 27. Ne3 {[%emt 0:00:15]} Rf7 {[%emt 0:00:57]} 28. Qa8+ {[%emt 0:01:41]} Rf8 {[%emt 0:01:22]} 29. Qd5+ {[%emt 0:00:26]} Qe6 {[%emt 0:01:54]} 30. Qxe6+ {[%emt 0:03:53]} Nxe6 {[%emt 0:00:04]} 31. Rxd6 {[%emt 0:00:03]} Rf3 {[%emt 0:00:31]} 32. Bg2 {[%emt 0:08:20]} Rxe3 {[%emt 0:00:42]} 33. Bd5 {[%emt 0:00:04]} h3 {[%emt 0:01:29]} 34. Bxe6+ {[%emt 0:00:30]} Kf8 {[%emt 0:00:09]} 35. Rf1+ {[%emt 0:04:21]} Ke8 {[%emt 0:00:13]} 36. Bf5 {[%emt 0:01:03]} h2 {[%emt 0:00:27]} 37. Rd2 {[%emt 0:01:32]} Rf3 {[%emt 0:01:01]} 38. Rc1 {[%emt 0:01:04]} Rgxf5 {[%emt 0:01:04]} 39. gxf5 {[%emt 0:00:05]} Bh6 {[%emt 0:00:09]} 40. Rxh2 {[%emt 0:00:04]} Bxc1 {[%emt 0:00:08]} 41. Kxc1 {[%emt 0:50:04]} Rxf5 {[%emt 0:02:16]} 42. Rh6 {[%emt 0:00:00]} a5 {[%emt 0:01:40]} 43. Rc6 {[%emt 0:00:00]} e4 {[%emt 0:02:44]} 44. Re6+ {[%emt 0:00:00]} Kd7 {[%emt 0:00:15]} 45. Rxe4 {[%emt 0:00:00]} b4 {[%emt 0:04:51]} 46. Re3 {[%emt 0:00:00]} Rf1+ {[%emt 0:05:28]} 47. Kd2 {[%emt 0:00:00]} Rb1 {[%emt 0:00:09]} 48. Re5 {[%emt 0:00:00]} Rxb2 {[%emt 0:01:00]} 49. Rxa5 {[%emt 0:00:00]} Rb1 {[%emt 0:00:07]} 50. Re5 {[%emt 0:00:00]} Ra1 {[%emt 0:01:17]} 51. Ra5 {[%emt 0:00:00]} Kc6 {[%emt 0:04:00]} 1/2-1/2

[Event "BL 2018-19"]
[Site "Berlin"]
[Date "2019.03.02"]
[Round "10.24"]
[White "Margolin, Boris"]
[Black "Coenen, Michael"]
[Result "1-0"]
[ECO "C42"]
[WhiteElo "2386"]
[BlackElo "2364"]
[Annotator "NA"]
[PlyCount "112"]
[EventDate "2018.11.10"]
[EventType "team-tourn"]
[EventCountry "GER"]
[SourceTitle "playchess.com"]
[Source "ChessBase"]
[SourceQuality "1"]
[WhiteTeam "SV Hofheim"]
[BlackTeam "Duesseldorf"]
[TimeControl "40/6000+30:3000+30"]

1. e4 {[%emt 0:00:00]} e5 {[%emt 0:00:00]} 2. Nf3 {[%emt 0:00:00]} Nf6 {[%emt 0:00:00]} 3. Nxe5 {[%emt 0:01:05]} d6 {[%emt 0:00:00]} 4. Nd3 {[%emt 0:00:13]} Nxe4 {[%emt 0:00:00]} 5. Qe2 {[%emt 0:00:04]} Qe7 {[%emt 0:00:05]} 6. Nf4 {[%emt 0:00:10]} Nf6 {[%emt 0:02:14]} 7. b3 {[%emt 0:04:25]} Bf5 {[%emt 0:06:44]} 8. Na3 {[%emt 0:09:01]} c6 {[%emt 0:09:34]} 9. Nc4 {[%emt 0:09:19]} Qxe2+ {[%emt 0:11:01]} 10. Bxe2 {[%emt 0:00:45]} d5 {[%emt 0:03:40]} 11. Ne3 {[%emt 0:00:08]} Bg6 {[%emt 0:01:18]} 12. Bb2 {[%emt 0:01:04]} Bd6 {[%emt 0:08:52]} 13. Nxg6 {[%emt 0:04:05]} hxg6 {[%emt 0:00:11]} 14. O-O-O {[%emt 0:01:10]} Nbd7 {[%emt 0:02:10]} 15. h4 {[%emt 0:01:19]} O-O-O {[%emt 0:02:57]} 16. g3 {[%emt 0:06:35]} Rde8 {[%emt 0:07:34]} 17. Bf3 {[%emt 0:08:12]} Be5 {[%emt 0:03:08]} 18. Ba3 {[%emt 0:02:40]} Bc7 {[%emt 0:03:19]} 19. Bg2 {[%emt 0:03:55]} Ne4 {[%emt 0:02:39]} 20. Rdf1 {[%emt 0:04:54]} Bd6 {[%emt 0:05:39]} 21. Bb2 {[%emt 0:04:18]} Be5 {[%emt 0:00:42]} 22. c3 {[%emt 0:01:39]} Ndf6 {[%emt 0:02:27]} 23. Kc2 {[%emt 0:04:41]} Bc7 {[%emt 0:03:05]} 24. Nd1 {[%emt 0:03:12]} Kb8 {[%emt 0:01:10]} 25. Bf3 {[%emt 0:05:04]} Bb6 {[%emt 0:05:25]} 26. d3 {[%emt 0:04:44]} Nd6 {[%emt 0:01:18]} 27. Re1 {[%emt 0:01:15]} Kc8 {[%emt 0:04:51]} 28. Ba3 {[%emt 0:03:58]} Kd7 {[%emt 0:02:37]} 29. Rxe8 {[%emt 0:02:39]} Rxe8 {[%emt 0:01:36]} 30. g4 {[%emt 0:00:46]} Rh8 {[%emt 0:02:15]} 31. Bc1 {[%emt 0:01:26]} Ng8 {[%emt 0:03:07]} 32. c4 {[%emt 0:03:33]} dxc4 {[%emt 0:02:06]} 33. dxc4 {[%emt 0:01:28]} Nf6 {[%emt 0:05:06]} 34. Bb2 {[%emt 0:02:57]} Rh7 {[%emt 0:03:17]} 35. h5 {[%emt 0:08:03]} gxh5 {[%emt 0:00:17]} 36. gxh5 {[%emt 0:00:09]} Nde4 {[%emt 0:02:34]} 37. Re1 {[%emt 0:04:38]} Ng5 {[%emt 0:01:38]} 38. Bxf6 {[%emt 0:02:25]} Nxf3 {[%emt 0:01:02]} 39. Re7+ {[%emt 0:00:25]} Kc8 {[%emt 0:03:12]} 40. Rxf7 {[%emt 0:01:28]} Rxh5 {[%emt 0:00:25]} 41. Bxg7 {[%emt 0:50:52]} Nh4 {[%emt 0:01:52]} 42. Kd3 {[%emt 0:00:00]} Nf5 {[%emt 0:03:24]} 43. Be5 {[%emt 0:00:00]} Nh6 {[%emt 0:02:45]} 44. Rf8+ {[%emt 0:00:00]} Kd7 {[%emt 0:00:02]} 45. Bf4 {[%emt 0:00:00]} Ng4 {[%emt 0:00:50]} 46. Bg3 {[%emt 0:00:00]} Rh7 {[%emt 0:04:11]} 47. Rf4 {[%emt 0:00:00]} Rg7 {[%emt 0:02:38]} 48. Nc3 {[%emt 0:00:00]} Ke6 {[%emt 0:11:05]} 49. Ne4 {[%emt 0:00:00]} Ne5+ {[%emt 0:01:27]} 50. Ke2 {[%emt 0:00:00]} Nd7 {[%emt 0:04:32]} 51. Rh4 {[%emt 0:00:00]} Nc5 {[%emt 0:04:59]} 52. Rh6+ {[%emt 0:00:00]} Kd7 {[%emt 0:00:01]} 53. Nf6+ {[%emt 0:00:00]} Ke7 {[%emt 0:02:13]} 54. Bd6+ {[%emt 0:00:00]} Kf7 {[%emt 0:00:02]} 55. Nh5 {[%emt 0:00:11]} Rg4 {[%emt 0:03:32]} 56. Rf6+ {[%emt 0:00:54] Rg5 Ng3+} Ke8 1-0

[Event "BL 2018-19"]
[Site "Berlin"]
[Date "2019.03.02"]
[Round "10.24"]
[White "Eichler, Christoph"]
[Black "Jakubowski, Krzysztof"]
[Result "0-1"]
[ECO "B40"]
[WhiteElo "2315"]
[BlackElo "2510"]
[Annotator "ChessBase"]
[PlyCount "112"]
[EventDate "2018.11.10"]
[EventType "team-tourn"]
[EventCountry "GER"]
[SourceTitle "playchess.com"]
[Source "ChessBase"]
[SourceQuality "1"]
[WhiteTeam "Zugzwang Muenchen"]
[BlackTeam "SF Berlin"]
[TimeControl "40/6000+30:3000+30"]

1. e4 {[%emt 0:00:00]} c5 {[%emt 0:00:00]} 2. Nf3 {[%emt 0:00:00]} e6 {[%emt 0:00:03]} 3. b3 {[%emt 0:00:10]} a6 4. Bb2 {[%emt 0:02:13]} Nc6 {[%emt 0:07:41]} 5. Be2 {[%emt 0:05:39]} Qc7 {[%emt 0:05:30]} 6. c4 {[%emt 0:06:50]} Nf6 {[%emt 0:01:16]} 7. Nc3 {[%emt 0:02:16]} b6 {[%emt 0:03:04]} 8. O-O {[%emt 0:05:34]} Bb7 {[%emt 0:00:24]} 9. Re1 {[%emt 0:03:02]} Bd6 {[%emt 0:08:13]} 10. Bf1 {[%emt 0:13:06]} Ng4 {[%emt 0:05:50]} 11. g3 {[%emt 0:04:14]} h5 {[%emt 0:00:45]} 12. Bh3 {[%emt 0:18:58]} O-O-O {[%emt 0:07:56]} 13. Na4 {[%emt 0:04:31]} Nge5 {[%emt 0:36:15]} 14. Nxe5 {[%emt 0:01:37]} Bxe5 {[%emt 0:01:32]} 15. Bxe5 {[%emt 0:00:35]} Qxe5 {[%emt 0:00:18]} 16. Nxb6+ {[%emt 0:04:44]} Kb8 {[%emt 0:00:06]} 17. Bg2 {[%emt 0:01:52]} h4 {[%emt 0:01:24]} 18. Qf3 {[%emt 0:07:53]} Nd4 {[%emt 0:03:36]} 19. Qc3 {[%emt 0:11:01]} hxg3 {[%emt 0:01:03]} 20. hxg3 {[%emt 0:00:12]} f5 {[%emt 0:11:17]} 21. f4 {[%emt 0:04:41]} Qd6 {[%emt 0:04:08]} 22. Na4 {[%emt 0:00:06]} fxe4 {[%emt 0:00:09]} 23. Re3 {[%emt 0:03:59]} g5 {[%emt 0:01:21]} 24. Rf1 {[%emt 0:01:27]} Nf3+ {[%emt 0:01:26]} 25. Rfxf3 {[%emt 0:00:38]} exf3 {[%emt 0:00:13]} 26. Rxf3 {[%emt 0:00:34]} gxf4 {[%emt 0:00:58]} 27. Rxf4 {[%emt 0:01:35]} Rhg8 {[%emt 0:02:00]} 28. Qe3 {[%emt 0:00:37]} Bxg2 {[%emt 0:03:21]} 29. Kxg2 {[%emt 0:00:02]} Qc6+ {[%emt 0:00:44]} 30. Qf3 {[%emt 0:00:54]} Kc7 {[%emt 0:00:40]} 31. Qxc6+ {[%emt 0:02:43]} Kxc6 {[%emt 0:00:05]} 32. d4 {[%emt 0:00:08]} cxd4 {[%emt 0:00:47]} 33. Rxd4 {[%emt 0:00:03]} Rg7 {[%emt 0:00:42]} 34. c5 {[%emt 0:00:56]} Rdg8 {[%emt 0:01:32]} 35. Rd6+ {[%emt 0:00:13]} Kc7 {[%emt 0:01:09]} 36. Rxa6 {[%emt 0:02:31]} Rxg3+ {[%emt 0:00:15]} 37. Kf2 {[%emt 0:00:02]} Rg2+ {[%emt 0:00:14]} 38. Kf3 {[%emt 0:00:13]} R8g3+ {[%emt 0:00:06]} 39. Kf4 {[%emt 0:00:15]} Rg4+ {[%emt 0:00:30]} 40. Kf3 {[%emt 0:01:01]} R2g3+ {[%emt 0:00:25]} 41. Kf2 {[%emt 0:50:34]} Rg2+ {[%emt 0:50:26]} 42. Kf3 {[%emt 0:00:00]} e5 {[%emt 0:00:00]} 43. Ra7+ {[%emt 0:00:00]} Kc6 {[%emt 0:00:00]} 44. Ra6+ {[%emt 0:00:00]} Kb7 {[%emt 0:00:00]} 45. Rd6 {[%emt 0:00:00]} R4g3+ {[%emt 0:00:00]} 46. Ke4 {[%emt 0:00:00]} Re2+ {[%emt 0:00:00]} 47. Kf5 {[%emt 0:00:00]} Rf3+ {[%emt 0:00:00]} 48. Kg4 {[%emt 0:00:00]} Rf7 {[%emt 0:00:00]} 49. Nb6 {[%emt 0:00:00]} Rg2+ {[%emt 0:00:00]} 50. Kh3 {[%emt 0:00:00]} Rg5 {[%emt 0:00:00]} 51. Rxd7+ {[%emt 0:00:00]} Rxd7 {[%emt 0:00:00]} 52. Nxd7 {[%emt 0:00:00]} e4 {[%emt 0:00:00]} 53. Kh4 {[%emt 0:00:00]} Rg7 {[%emt 0:00:00]} 54. Ne5 {[%emt 0:00:00]} e3 {[%emt 0:00:00]} 55. Nf3 {[%emt 0:00:00]} e2 {[%emt 0:00:00]} 56. Kh3 {[%emt 0:00:00]} Rf7 {[%emt 0:00:00]} 0-1

[Event "BL 2018-19"]
[Site "Berlin"]
[Date "2019.03.02"]
[Round "10.31"]
[White "Hoffmann, Paul"]
[Black "Nestorovic, Nikola"]
[Result "1-0"]
[ECO "C55"]
[WhiteElo "2376"]
[BlackElo "2455"]
[Annotator "ChessBase"]
[PlyCount "85"]
[EventDate "2018.11.10"]
[EventType "team-tourn"]
[EventCountry "GER"]
[SourceTitle "playchess.com"]
[Source "ChessBase"]
[SourceQuality "1"]
[WhiteTeam "Dresden"]
[BlackTeam "Augsburg"]
[TimeControl "40/6000+30:3000+30"]

1. e4 {[%emt 0:00:00]} e5 {[%emt 0:00:00]} 2. Nf3 {[%emt 0:00:00]} Nc6 {[%emt 0:00:00]} 3. Bc4 {[%emt 0:00:00]} Nf6 {[%emt 0:00:56]} 4. d3 {[%emt 0:00:00]} Be7 {[%emt 0:01:23]} 5. O-O {[%emt 0:00:29]} O-O {[%emt 0:00:11]} 6. Bb3 {[%emt 0:02:21]} d6 {[%emt 0:01:39]} 7. c3 {[%emt 0:00:09]} Na5 {[%emt 0:00:15]} 8. Bc2 {[%emt 0:00:14]} c5 {[%emt 0:00:10]} 9. a4 {[%emt 0:01:19]} Nc6 {[%emt 0:01:47]} 10. Nbd2 {[%emt 0:02:56]} Re8 {[%emt 0:00:58]} 11. Re1 {[%emt 0:02:59]} Bf8 {[%emt 0:00:49]} 12. h3 {[%emt 0:04:18]} h6 {[%emt 0:06:56]} 13. Nf1 {[%emt 0:12:17]} g6 {[%emt 0:01:32]} 14. Ng3 {[%emt 0:02:06]} Bg7 {[%emt 0:00:17]} 15. Be3 {[%emt 0:00:21]} b6 {[%emt 0:14:31]} 16. d4 {[%emt 0:07:26]} cxd4 {[%emt 0:07:38]} 17. cxd4 {[%emt 0:00:12]} Nxd4 {[%emt 0:01:14]} 18. Nxd4 {[%emt 0:00:39]} exd4 {[%emt 0:00:04]} 19. Bxd4 {[%emt 0:00:08]} h5 {[%emt 0:09:08]} 20. Qf3 {[%emt 0:18:33]} Be6 {[%emt 0:18:53]} 21. Bd3 {[%emt 0:09:27]} Rc8 {[%emt 0:11:24]} 22. Ba6 {[%emt 0:01:18]} Rc7 {[%emt 0:00:27]} 23. Rad1 {[%emt 0:02:13]} h4 {[%emt 0:08:12]} 24. Nf1 {[%emt 0:02:36]} Bd7 {[%emt 0:05:39]} 25. e5 {[%emt 0:15:41]} Bc6 {[%emt 0:00:05]} 26. Qa3 {[%emt 0:00:06]} Ne4 {[%emt 0:15:01]} 27. exd6 {[%emt 0:16:58]} Bxd4 {[%emt 0:00:21]} 28. Rxd4 {[%emt 0:01:20]} Rd7 {[%emt 0:00:02]} 29. Bb5 {[%emt 0:02:44]} Bxb5 {[%emt 0:03:33]} 30. axb5 {[%emt 0:00:02]} f5 {[%emt 0:01:22]} 31. f3 {[%emt 0:02:04]} Nc5 {[%emt 0:00:30]} 32. Rxe8+ {[%emt 0:01:40]} Qxe8 {[%emt 0:00:03]} 33. Qe3 {[%emt 0:01:17]} Qxe3+ {[%emt 0:00:53]} 34. Nxe3 {[%emt 0:00:01]} Ne6 {[%emt 0:00:31]} 35. Rd2 {[%emt 0:00:35]} Nd8 {[%emt 0:00:34]} 36. Nc4 {[%emt 0:01:13]} Nf7 {[%emt 0:00:30]} 37. Rd4 {[%emt 0:00:36]} g5 {[%emt 0:00:19]} 38. f4 {[%emt 0:01:35]} Kg7 {[%emt 0:00:41]} 39. fxg5 {[%emt 0:00:25]} Nxg5 {[%emt 0:00:09]} 40. Ne5 Ne6 41. Rd1 {[%emt 0:04:22]} Rd8 {[%emt 0:00:00]} 42. d7 {[%emt 0:00:32]} Nf8 {[%emt 0:05:46]} 43. Rd6 {[%emt 0:00:21]} 1-0

[Event "BL 2018-19"]
[Site "Berlin"]
[Date "2019.03.02"]
[Round "10.32"]
[White "Pitl, Gregory"]
[Black "Loxine, Jakov"]
[Result "1/2-1/2"]
[ECO "B32"]
[WhiteElo "2387"]
[BlackElo "2393"]
[Annotator "NA"]
[PlyCount "53"]
[EventDate "2018.11.10"]
[EventType "team-tourn"]
[EventCountry "GER"]
[SourceTitle "playchess.com"]
[Source "ChessBase"]
[SourceQuality "1"]
[WhiteTeam "Augsburg"]
[BlackTeam "Dresden"]
[TimeControl "40/6000+30:3000+30"]

1. e4 {[%emt 0:00:00]} c5 {[%emt 0:00:00]} 2. Nf3 {[%emt 0:00:00]} Nc6 {[%emt 0:00:00]} 3. d4 {[%emt 0:00:00]} cxd4 {[%emt 0:00:00]} 4. Nxd4 {[%emt 0:00:00]} e5 {[%emt 0:00:00]} 5. Nb5 {[%emt 0:00:06]} d6 {[%emt 0:00:00]} 6. N1c3 {[%emt 0:00:29]} a6 {[%emt 0:00:02]} 7. Na3 {[%emt 0:00:04]} Be6 {[%emt 0:00:07]} 8. Nc4 {[%emt 0:03:44]} Rb8 {[%emt 0:00:13]} 9. a4 {[%emt 0:01:43]} Nb4 {[%emt 0:05:55]} 10. Be2 {[%emt 0:14:24]} Qc7 {[%emt 0:14:13]} 11. Ne3 {[%emt 0:01:05]} Nf6 {[%emt 0:00:48]} 12. Ncd5 {[%emt 0:11:03]} Nbxd5 {[%emt 0:10:13]} 13. exd5 {[%emt 0:00:27]} Bd7 {[%emt 0:00:07]} 14. a5 {[%emt 0:13:22]} g6 {[%emt 0:06:07]} 15. O-O {[%emt 0:00:15]} Bg7 {[%emt 0:00:13]} 16. c4 {[%emt 0:07:23]} O-O {[%emt 0:00:23]} 17. b4 {[%emt 0:03:28]} Ne4 {[%emt 0:18:18]} 18. Qd3 {[%emt 0:13:24]} f5 {[%emt 0:00:53]} 19. Ba3 {[%emt 0:00:37]} b5 {[%emt 0:17:55]} 20. axb6 {[%emt 0:05:01]} Qxb6 {[%emt 0:00:06]} 21. Rac1 {[%emt 0:03:56]} Rfc8 {[%emt 0:01:49]} 22. Bf3 {[%emt 0:07:26]} a5 {[%emt 0:12:04]} 23. bxa5 {[%emt 0:07:04]} Qxa5 {[%emt 0:03:00]} 24. Bxe4 {[%emt 0:00:16]} fxe4 {[%emt 0:00:05]} 25. Qc3 {[%emt 0:00:03]} Qxc3 {[%emt 0:00:43]} 26. Rxc3 {[%emt 0:00:05]} Bf8 {[%emt 0:01:20]} 27. Rfc1 1/2-1/2

[Event "BL 2018-19"]
[Site "Berlin"]
[Date "2019.03.03"]
[Round "11.6"]
[White "Hausrath, Daniel"]
[Black "Rogozenco, Dorian"]
[Result "1/2-1/2"]
[ECO "A06"]
[WhiteElo "2493"]
[BlackElo "2495"]
[Annotator "ChessBase"]
[PlyCount "46"]
[EventDate "2018.11.10"]
[EventType "team-tourn"]
[EventCountry "GER"]
[SourceTitle "playchess.com"]
[Source "ChessBase"]
[SourceQuality "1"]
[WhiteTeam "Muelheim"]
[BlackTeam "Hamburg SK"]
[TimeControl "40/6000+30:3000+30"]

1. Nf3 {[%emt 0:00:00]} d5 {[%emt 0:00:01]} 2. g3 {[%emt 0:00:00]} Nc6 {[%emt 0:00:21]} 3. Bg2 {[%emt 0:04:25]} e5 {[%emt 0:00:15]} 4. d3 {[%emt 0:00:41]} g6 {[%emt 0:01:03]} 5. O-O {[%emt 0:00:18]} Bg7 {[%emt 0:00:08]} 6. c4 {[%emt 0:06:43]} dxc4 {[%emt 0:08:27]} 7. dxc4 {[%emt 0:01:39]} Qxd1 {[%emt 0:00:38]} 8. Rxd1 {[%emt 0:00:04]} Be6 {[%emt 0:02:27]} 9. Nc3 {[%emt 0:06:35]} h6 {[%emt 0:06:28]} 10. Be3 {[%emt 0:05:13]} Nge7 {[%emt 0:07:44]} 11. Nd5 {[%emt 0:30:40]} O-O-O {[%emt 0:05:54]} 12. Ne1 {[%emt 0:00:44]} Nf5 {[%emt 0:08:08]} 13. Bc5 {[%emt 0:02:34]} b6 {[%emt 0:21:26]} 14. Ba3 {[%emt 0:01:08]} Na5 {[%emt 0:00:07]} 15. Rac1 {[%emt 0:13:28]} c6 {[%emt 0:10:45]} 16. b4 {[%emt 0:03:59]} Nb7 {[%emt 0:00:18]} 17. g4 {[%emt 0:06:14]} Nd4 {[%emt 0:02:57]} 18. Rxd4 {[%emt 0:00:24]} exd4 {[%emt 0:00:15]} 19. Ne7+ {[%emt 0:00:06]} Kc7 {[%emt 0:00:54]} 20. Nxc6 {[%emt 0:00:08]} Bxg4 {[%emt 0:00:19]} 21. Nxd8 {[%emt 0:01:59]} Rxd8 {[%emt 0:01:39]} 22. Rc2 {[%emt 0:00:40]} Re8 {[%emt 0:01:58]} 23. Bf3 {[%emt 0:02:34]} Bf5 {[%emt 0:02:54]} 1/2-1/2